Cogmind - Beta 11 X11 @@@ ROGUE MODE // 2022.03.05 @ 15:28:13 Player: youngster Result: Destroyed by as-27112 with Assembled Focal Cannon Performance ------------- Evolutions (4) 2000 Regions Visited (15) 3000 Robots Destroyed (160) 800 Value Destroyed (5325) 5325 Prototype IDs (57) 1140 Alien Tech Used (0) 0 Bonus (537) 537 TOTAL SCORE: 12802 Bonus ------- High Alert Combat Kills 141 Follower Combat Kills 20 Met Data Miner 300 Met Imprinter 300 Triggered Deep Caves Wall 500 Friendly Fire -724 Cogmind --------- Core Integrity 0/850 Matter 290/300 Energy 100/100 System Corruption 57% Temperature Cool (6) Movement Hovering (52) Location -6/Deep Caves Parts ------- > --- POWER (1) -------- Zionite Light DM Reactor > --- PROPULSION (5) --- Zionite Glidesys I Zionite Glidesys I Zionite Glidesys I > --- UTILITY (5) ------ Experimental Heat Sink Modified TNC Zionite Weapon Casing Improved Trap Extractor (2/6 Dirty Bomb) > --- WEAPON (4) ------- Ripper > --- INVENTORY (5) ---- Zionite Light DM Reactor Bomb Factory No. 2 Peak State ------------ > --- POWER ------------ Zionite Light DM Reactor > --- PROPULSION ------- Zionite Glidesys I Zionite Glidesys I Zionite Glidesys I Zionite Glidesys I Zionite Glidesys I > --- UTILITY ---------- Experimental Heat Sink Zionite Biocell Zionite Weapon Casing Zionite Light Carapace Improved Trap Extractor > --- WEAPON ----------- Ripper > --- INVENTORY -------- Zionite Light DM Reactor Zionite Glidesys I Component Analysis Suite Bomb Factory No. 2 [Rating: 74] Favorites ----------- Power Antimatter Reactor Engine Deuterium Engine Power Core Light Fission Core Reactor Antimatter Reactor Propulsion Makeshift Leg Treads Medium Treads Leg Makeshift Leg Wheel Wheel Hover Unit Zionite Glidesys I Utility Huge Storage Unit Device Seismic Detector Storage Huge Storage Unit Processor Visual Processing Unit Hackware Makeshift System Shield Protection Light Armor Plating Weapon Great Axe Energy Gun EM Pulse Gun Energy Cannon Heavy Plasma Cannon Ballistic Gun Minigun Ballistic Cannon Heavy Flak Cannon Launcher Long-range Missile Launcher Slashing Weapon Great Axe Special Melee Weapon Datajack Build | -11 -10 -10 -10 -9 -8 -7 -7 -7 -7 -6 -6 -6 -6 -6 -6 ------- Run | Scr Mat Min Exi Min Mat Fac Low Low Dat Pro Fac Low Low Zio Dee Slots Evolved 8 | . . . . . 4 2 . . . . 2 . . . . Power . | . . . . . . . . . . . . . . . . Propulsion 3 | . . . . . 1 1 . . . . 1 . . . . Utility 3 | . . . . . 1 1 . . . . 1 . . . . Weapon 2 | . . . . . 2 . . . . . . . . . . Parts Attached 363 | 7 24 12 2 11 52 57 31 28 4 18 15 17 24 33 28 Power 14 | 1 3 . . 1 1 1 1 . . 2 . . 2 . 2 Engine 7 | 1 3 . . . 1 1 . . . 1 . . . . . Core 4 | . . . . 1 . . 1 . . 1 . . . . 1 Reactor 3 | . . . . . . . . . . . . . 2 . 1 Propulsion 94 | 2 11 4 . 5 19 13 5 7 . 2 4 . 7 4 11 Treads 51 | 2 6 2 . 3 11 10 4 3 . 2 1 . 6 1 . Leg 9 | . . . . . . . . 1 . . 3 . 1 3 1 Wheel 24 | . 5 2 . 2 8 3 1 3 . . . . . . . Hover 10 | . . . . . . . . . . . . . . . 10 Flight . | . . . . . . . . . . . . . . . . Utility 162 | 2 6 3 1 1 19 27 15 15 . 7 7 17 8 21 13 Device 97 | 1 2 . . 1 8 15 9 12 . 5 3 14 5 18 4 Storage 6 | 1 2 . 1 . 1 . . . . . . . . . 1 Processor 3 | . . . . . . 1 . . . . 1 . . . 1 Hackware 1 | . . . . . . . . . . . 1 . . . . Protection 55 | . 2 3 . . 10 11 6 3 . 2 2 3 3 3 7 Artifact . | . . . . . . . . . . . . . . . . Weapon 93 | 2 4 5 1 4 13 16 10 6 4 7 4 . 7 8 2 Energy Gun 7 | . 1 2 . 1 . . 1 1 . . . . . 1 . Energy Cannon 5 | . . . . . 1 3 . . . . . . 1 . . Ballistic Gun 27 | 2 3 2 . 1 5 6 . 2 1 . . . 3 2 . Ballistic Cannon 13 | . . . . 1 1 1 3 1 2 1 2 . . . 1 Launcher 17 | . . . . 1 2 2 4 1 . 2 1 . 3 1 . Special Weapon . | . . . . . . . . . . . . . . . . Impact Weapon . | . . . . . . . . . . . . . . . . Slashing Weapon 14 | . . . . . 1 4 1 1 . 3 1 . . 2 1 Piercing Weapon . | . . . . . . . . . . . . . . . . Special Melee Weapon 10 | . . 1 1 . 3 . 1 . 1 1 . . . 2 . Unidentified Prototypes 10 | . . . . . . 2 . . . . . . . . 8 Corrupted Parts 7 | . . . . 1 1 . . . . 1 . . . 1 3 System Corruption 58 | . . . . 6 2 . . . . 10 . . . 10 30 Parts Lost 66 | . 3 1 . . 3 4 9 . . 1 2 . 11 6 26 Power 6 | . 2 . . . . 1 1 . . . . . 1 . 1 Propulsion 23 | . . . . . . 1 3 . . 1 1 . 6 2 9 Utility 18 | . . . . . 1 . 2 . . . 1 . 1 3 10 Weapon 19 | . 1 1 . . 2 2 3 . . . . . 3 1 6 Highest Loss Streak 20 | . 2 1 . . 2 2 5 . . 1 2 . 7 4 20 To Critical Strikes . | . . . . . . . . . . . . . . . . Average Slot Usage (%) 87 | . 99 100 100 100 96 99 92 97 83 99 99 100 84 79 78 Engine 2 | . 13 14 14 11 7 7 3 . . 4 . . . . . Core 1 | . . . . 2 1 . 3 7 7 2 6 6 3 . . Reactor 3 | . . . . . . . . . . . . . 2 6 5 Treads 12 | . 21 14 14 14 18 24 26 22 15 16 21 20 14 5 4 Leg 7 | . . . . . . . . 3 7 7 10 13 5 11 9 Wheel 2 | . 6 13 14 13 8 5 2 3 7 5 . . . . . Device 7 | . 7 . . . 6 12 6 11 7 13 5 11 12 7 7 Storage 7 | . 14 14 14 14 9 7 7 7 7 7 6 6 6 6 5 Processor 4 | . . . . . . 5 7 7 7 7 13 6 6 5 . Hackware 3 | . . . . . . . . . . . 5 6 6 5 . Protection 3 | . 6 13 14 14 10 3 7 3 7 1 . . . . 17 Energy Cannon 3 | . . . . . 3 1 . . . . . . 2 5 . Ballistic Gun 12 | . 27 21 14 14 19 15 . 1 . 7 6 6 9 12 4 Ballistic Cannon 3 | . . . . 3 7 7 11 14 1 15 13 13 7 . 4 Slashing Weapon 4 | . . . . . . 4 6 8 7 6 5 6 3 5 4 Naked Turns 3 | . . . . . . . . . . . . . . . 3 Heaviest Build 154 | 13 31 32 51 54 112 119 135 131 124 133 118 126 126 148 154 Greatest Support 98 | 40 40 40 10 40 60 92 71 93 10 93 93 70 98 40 70 Greatest Overweight (x) 13 | . 3 3 5 5 11 11 8 12 12 13 2 1 4 5 3 Average Overweight (x) 3 | . 1 2 3 4 7 7 3 6 11 8 1 1 1 3 1 Largest Inventory Capacity 25 | 8 15 15 20 20 25 25 25 25 25 25 25 25 25 25 25 Average Capacity 23 | 7 12 15 15 20 23 25 25 25 25 25 25 25 25 25 20 Most Carried 25 | 3 15 15 15 19 25 25 25 25 25 25 25 25 25 25 25 Average Carried 20 | 1 9 14 15 16 22 24 22 24 24 24 24 24 22 20 18 Final Capacity 25 | 8 15 15 20 20 25 25 25 25 25 25 25 25 25 25 5 Final Carried 25 | 3 15 15 15 19 25 25 25 25 25 25 25 25 18 25 3 Class Distribution -------------------- 54% | Derelict-Mutant 29% | Mutant 5% | Scavenger-Mutant Dominant Class ---------------- Mutant | -10/Materials Mutant | -10/Mines Mutant | -10/Exiles Mutant | -9/Mines Tank | -8/Materials Scavenger-Mutant | -7/Factory Mutant | -7/Lower Caves Derelict-Mutant | -7/Lower Caves Mutant | -7/Data Miner Derelict-Mutant | -6/Proximity Caves Derelict-Mutant | -6/Factory Derelict-Mutant | -6/Lower Caves Skirmisher | -6/Lower Caves Derelict-Mutant | -6/Zion Mutant | -6/Deep Caves Resources | -11 -10 -10 -10 -9 -8 -7 -7 -7 -7 -6 -6 -6 -6 -6 -6 ----------- Run | Scr Mat Min Exi Min Mat Fac Low Low Dat Pro Fac Low Low Zio Dee Matter Collected 16516 | 278 534 215 10 179 1116 1071 1100 446 . 453 388 568 466 9233 459 Remotely 729 | . . . . . . 238 105 123 . . . 32 231 . . Salvage Created 6258 | 84 701 299 . 179 1522 1028 818 219 . 333 200 59 454 132 230 Parts 299 | 11 40 16 . 14 87 52 20 13 . 6 6 2 8 8 16 Haulers Intercepted 10 | . 2 . . . 4 4 . . . . . . . . . Recyclers Shooed 2 | . . 1 . . . 1 . . . . . . . . . Parts Field Recycled . | . . . . . . . . . . . . . . . . Retrieved Matter . | . . . . . . . . . . . . . . . . Parts Self-Destructed 58 | . . . . . . . 13 10 . 6 . 3 18 8 . Prevented 13 | . . . . . . . 7 3 . . . 3 . . . Kills | -11 -10 -10 -10 -9 -8 -7 -7 -7 -7 -6 -6 -6 -6 -6 -6 ------- Run | Scr Mat Min Exi Min Mat Fac Low Low Dat Pro Fac Low Low Zio Dee Combat Hostiles Destroyed 130 | . 14 6 . 7 31 14 13 8 . 8 7 1 15 1 5 Melee 3 | . . . . . . . . . . . . . . . 3 Guns 45 | . 14 5 . 2 14 5 . . . 1 1 . 1 1 1 Cannons 42 | . . . . 3 12 7 4 6 . . 6 1 2 . 1 AOE 39 | . . 1 . 2 4 2 9 2 . 7 . . 12 . . Classes Destroyed 21 | 2 3 . . 1 5 2 1 2 . . . . 1 1 3 Worker 4 | . . . . . 3 . . . . . 1 . . . . Builder 3 | . . . . . 1 2 . . . . . . . . . Tunneler 2 | 2 . . . . . . . . . . . . . . . Hauler 10 | . 2 . . . 4 4 . . . . . . . . . Recycler 5 | 1 1 . . . 1 2 . . . . . . . . . Minesweeper 2 | . . . . . . . . 1 . . . 1 . . . Watcher 2 | . . . . . . 2 . . . . . . . . . Swarmer 33 | . 3 . . 4 8 . 3 3 . 4 2 . 6 . . Grunt 54 | . 11 6 . 2 11 6 2 3 . 4 4 1 4 . . Brawler 11 | . . . . 1 3 2 4 . . . . . 1 . . Duelist 4 | . . . . . 2 . . . . . . . 2 . . Protector 1 | . . . . . . . . . . . . . 1 . . Sentry 11 | . . . . . 6 3 1 . . . . . 1 . . Hunter 3 | . . . . . 1 . 1 1 . . . . . . . Programmer 5 | . . . . . . 3 1 . . . 1 . . . . Behemoth 1 | . . . . . . . 1 . . . . . . . . Zionite 5 | . . . . . . . . . . . . . . 5 . Z-Technician 5 | . . . . . . . . . . . . . . . 5 Z-Light 2 | . . . . . . . . . . . . . . . 2 Decomposer 2 | . . . . . . . . . . . . 1 1 . . Packrat 5 | . . . . . . . 4 . . . . . 1 . . Assembled 3 | . . . . . . . . . . . . . . . 3 Mutant 1 | . . . . . . . . 1 . . . . . . . Best Kill Streak 6 | 2 3 3 . 4 5 6 5 4 . 4 3 1 5 2 4 Combat Bots Only 5 | . 2 3 . 4 4 5 5 4 . 4 3 1 5 1 3 Max Kills in Single Turn 4 | 1 1 1 . 2 2 1 3 1 . 4 1 1 4 1 1 Gunslinging . | . . . . . . . . . . . . . . . . Exploded 4 | . . 1 . 2 2 1 3 1 . 4 . . 4 . . Melee 1 | . . . . . . . . . . . . . . . 1 Uniques/NPCs Destroyed 1 | . . . . . . . . . . . . . . 1 . Imprinter (-6/Zion) Combat | -11 -10 -10 -10 -9 -8 -7 -7 -7 -7 -6 -6 -6 -6 -6 -6 -------- Run | Scr Mat Min Exi Min Mat Fac Low Low Dat Pro Fac Low Low Zio Dee Damage Taken 11187 | . 794 263 . 142 1161 1182 1857 259 . 274 553 172 1516 568 2446 Core 1453 | . 91 25 . 29 87 121 175 16 . 15 36 19 92 6 741 Absorbed by Shields 384 | . . . . . . . 56 136 . 12 . . . . 180 Redirected to Shielding 62 | . 6 . . . 56 . . . . . . . . . . Regen/Repaired (Parts) 545 | . 240 . . . 203 102 . . . . . . . . . Core Remaining (%) 69 | 100 . . . 42 84 . . . . 53 . . . . . Volleys Fired 359 | 4 72 29 . 13 62 43 43 18 . 7 19 4 26 13 6 Largest 4 | 2 2 2 . 2 4 4 4 3 . 3 3 3 3 2 2 Hottest 250 | 40 60 60 . 60 156 170 147 153 . 125 139 139 145 250 57 Shots Fired 832 | 8 144 57 . 24 174 133 78 42 . 14 57 12 55 24 10 Gun 516 | 8 144 57 . 16 105 80 13 9 . 2 19 4 30 23 6 Cannon 266 | . . . . 8 59 48 47 30 . 6 38 8 18 . 4 Launcher 50 | . . . . . 10 5 18 3 . 6 . . 7 1 . Special . | . . . . . . . . . . . . . . . . Kinetic 721 | 8 141 46 . 20 143 116 60 34 . 8 57 12 45 21 10 Thermal 5 | . . . . . . . . . . . . . 3 2 . Explosive 29 | . . . . . 4 . 8 3 . 6 . . 7 1 . Electromagnetic 77 | . 3 11 . 4 27 17 10 5 . . . . . . . Robot Hit Streak 16 | 5 10 8 . 2 14 10 13 8 . 3 14 3 12 16 3 Robot Miss Streak 13 | 1 3 3 . 2 3 4 3 2 . 12 13 4 5 3 4 Penetration Max 1 | . . . . . . . . . . . . . . . 1 Secondary Targets 1 | . . 1 . . . . . . . . . . . . . Max Gunslinging Chain 1 | . . 1 . . . . . . . . . . . . . Shots Hit Robots 565 | 6 97 36 4 11 93 82 60 27 1 10 43 10 41 23 21 Core Hits 359 | 5 40 17 . 8 65 56 36 18 . 18 31 10 41 8 6 Critical Kills 2 | . 1 . . . . . . . . . . . . . 1 Critical Parts Destroyed 1 | . . . . . . 1 . . . . . . . . . Critical Strikes 6 | . 1 . . . . 1 1 . . . . . . 2 1 Destroy 3 | . 1 . . . . 1 . . . . . . . . 1 Sever 3 | . . . . . . . 1 . . . . . . 2 . Melee Attacks 97 | . . . 4 . 1 14 13 4 1 4 6 1 2 14 33 Impact . | . . . . . . . . . . . . . . . . Slashing 83 | . . . . . . 14 7 4 . 3 6 1 2 13 33 Piercing . | . . . . . . . . . . . . . . . . Sneak Attacks 27 | . . . 4 . . 2 10 . 1 1 1 1 1 1 5 Combat Hostiles . | . . . . . . . . . . . . . . . . Follow-up Attacks . | . . . . . . . . . . . . . . . . Damage Inflicted 16640 | 50 861 449 . 311 2429 2173 2673 1002 . 1250 927 244 2235 808 1228 Guns 4918 | 50 846 400 . 80 1011 831 273 160 . 20 224 44 416 507 56 Cannons 4190 | . . . . 71 825 871 771 529 . 34 531 98 431 . 29 Explosions 4705 | . . 43 . 160 590 276 1099 313 . 871 . . 1288 65 . Melee 2803 | . . . . . . 195 530 . . 325 172 102 100 236 1143 Ramming 24 | . 15 6 . . 3 . . . . . . . . . . Kinetic 7715 | 50 806 292 . 119 1346 1391 1044 630 . 54 755 142 750 251 85 Thermal 556 | . . 43 . 160 . . . . . . . . 97 256 . Explosive 3440 | . . . . . 309 . 594 313 . 871 . . 1288 65 . Electromagnetic 2102 | . 40 108 . 32 771 587 505 59 . . . . . . . Impact . | . . . . . . . . . . . . . . . . Slashing 2803 | . . . . . . 195 530 . . 325 172 102 100 236 1143 Piercing . | . . . . . . . . . . . . . . . . Highest Corruption 57 | . . . . 6 3 3 4 4 4 14 1 1 . 23 57 Average Corruption 6 | . . . . 6 1 1 3 4 4 4 1 1 . 14 29 Corruption Purged 2 | . . . . . . . . . . . . 1 . 1 . Corruption Blocked . | . . . . . . . . . . . . . . . . Effects 165 | . . . . . 7 16 28 29 3 27 1 . . 7 47 Message Errors 41 | . . . . . 2 6 8 5 1 5 . . . 3 11 Matter Fused 41 | . . . . . 1 6 7 8 . 5 1 . . 2 11 Heat Flow Errors 15 | . . . . . . 3 1 2 1 3 . . . . 5 Energy Discharges 24 | . . . . . 1 . 4 6 1 3 . . . 1 8 Parts Rejected 1 | . . . . . 1 . . . . . . . . . . Data Loss (minor) 20 | . . . . . 1 1 4 2 . 6 . . . . 6 Data Loss (major) 7 | . . . . . . . 2 3 . . . . . . 2 Misfires 11 | . . . . . . . 1 2 . 5 . . . 1 2 Alerts 2 | . . . . . . . 1 1 . . . . . . . Misdirections 2 | . . . . . . . . . . . . . . . 2 Weapon Failures 1 | . . . . . 1 . . . . . . . . . . Overload Shots . | . . . . . . . . . . . . . . . . Overflow Damage 1463 | . . . . 9 . 32 270 6 . 247 97 . 194 . 608 Projectiles 111 | . . . . . . 30 34 6 . . . . 41 . . Explosions 107 | . . . . 9 . 2 25 . . . . . 71 . . Melee 1245 | . . . . . . . 211 . . 247 97 . 82 . 608 Knockbacks 43 | . . . . 1 2 1 2 3 . 2 20 2 10 . . Impact . | . . . . . . . . . . . . . . . . Kinetic 42 | . . . . 1 2 1 2 3 . 1 20 2 10 . . Secondary 1 | . . . . . . . . . . 1 . . . . . Self-Inflicted Damage 218 | . . . . . 64 10 91 . . . . . 53 . . Shots 15 | . . . . . 6 2 6 . . . . . 1 . . Rammed 8 | . 4 3 . . 1 . . . . . . . . . . Targets Rammed 8 | . 4 3 . . 1 . . . . . . . . . . Kicked . | . . . . . . . . . . . . . . . . Crushed . | . . . . . . . . . . . . . . . . Highest Temperature 377 | . 43 63 . 27 334 289 377 235 142 257 300 1 307 352 223 Average Temperature 81 | . 11 18 . 9 82 80 101 89 76 76 152 1 163 106 60 Received Heat Transfer 3225 | . 426 177 . . 297 405 407 102 . 138 156 84 432 27 574 Effects 1 | . . . . . . . 1 . . . . . . . . Short Circuit 1 | . . . . . . . 1 . . . . . . . . Siege Activations . | . . . . . . . . . . . . . . . . Robots Corrupted 1 | . . . . . 1 . . . . . . . . . . Combat Hostiles 1 | . . . . . 1 . . . . . . . . . . Parts Fried 6 | . . . . . 3 1 2 . . . . . . . . Impact Corruptions . | . . . . . . . . . . . . . . . . Robots Melted . | . . . . . . . . . . . . . . . . Combat Hostiles . | . . . . . . . . . . . . . . . . Parts Melted 2 | . . . . . . . . . . . . . . 2 . Heat Transferred 440 | . . . . 200 . . . . . . . . 150 90 . Parts Sabotaged . | . . . . . . . . . . . . . . . . Parts Stolen . | . . . . . . . . . . . . . . . . Parts Stripped . | . . . . . . . . . . . . . . . . Power Chain Reactions 1 | . . 1 . . . . . . . . . . . . . Missiles Intercepted . | . . . . . . . . . . . . . . . . Alert | -11 -10 -10 -10 -9 -8 -7 -7 -7 -7 -6 -6 -6 -6 -6 -6 ------- Run | Scr Mat Min Exi Min Mat Fac Low Low Dat Pro Fac Low Low Zio Dee Peak Influence 582 | 15 235 108 . 198 582 419 . . . . 123 . . . . Initial 264 | . 9 54 . . 33 264 . . . . . . . . . Average 147 | 6 119 38 . 50 248 218 . . . . 42 . . . . Maximum Alert Level 2 | . 1 . . . 2 2 . . . . . . . . . Low Security (%) 71 | 100 83 100 . 100 45 49 . . . . 100 . . . . Level 1 18 | . 16 . . . 21 42 . . . . . . . . . Level 2 10 | . . . . . 33 8 . . . . . . . . . Level 3 . | . . . . . . . . . . . . . . . . Level 4 . | . . . . . . . . . . . . . . . . Level 5 . | . . . . . . . . . . . . . . . . High Security . | . . . . . . . . . . . . . . . . Max Security . | . . . . . . . . . . . . . . . . Squads Dispatched 23 | . 4 . . . 6 7 . . . . 5 . 1 . . Investigation 3 | . 3 . . . . . . . . . . . . . . Extermination 4 | . . . . . . 2 . . . . 2 . . . . Reinforcement 6 | . 1 . . . 3 2 . . . . . . . . . Assault 1 | . . . . . . . . . . . . . 1 . . Garrison 9 | . . . . . 3 3 . . . . 3 . . . . Intercept . | . . . . . . . . . . . . . . . . Searches Triggered . | . . . . . . . . . . . . . . . . Construction Impeded 1 | . . . . . 1 . . . . . . . . . . Haulers Reinforced 1 | . . . . . . 1 . . . . . . . . . Active Scanning Responses . | . . . . . . . . . . . . . . . . Cargo Convoy Interrupts . | . . . . . . . . . . . . . . . . Stealth | -11 -10 -10 -10 -9 -8 -7 -7 -7 -7 -6 -6 -6 -6 -6 -6 --------- Run | Scr Mat Min Exi Min Mat Fac Low Low Dat Pro Fac Low Low Zio Dee Distress Signals 11 | . 4 . . . 5 2 . . . . . . . . . Communications Jammed . | . . . . . . . . . . . . . . . . Distress Signals . | . . . . . . . . . . . . . . . . Times Spotted 244 | . 33 7 . 7 52 27 15 8 . 8 8 10 17 11 41 Peak Tracking Total 38 | . 5 2 . 4 5 5 7 3 . 4 5 4 5 4 38 Tactical Retreats 16 | . 2 1 . . . 4 1 . . . . 4 1 . 3 Traps | -11 -10 -10 -10 -9 -8 -7 -7 -7 -7 -6 -6 -6 -6 -6 -6 ------- Run | Scr Mat Min Exi Min Mat Fac Low Low Dat Pro Fac Low Low Zio Dee Traps Triggered 8 | . 1 . . . 1 3 . . . . . . . . 3 Indirectly 1 | . . . . . 1 . . . . . . . . . . Trap Hack Attempts 166 | . . 65 . . 101 . . . . . . . . . . Triggered . | . . . . . . . . . . . . . . . . Disarmed . | . . . . . . . . . . . . . . . . Reprogrammed 13 | . . 2 . . 6 5 . . . . . . . . . Reused 51 | . . . . . 5 5 . . . . . 3 . 37 1 Traps Extracted 9 | . . . . . 4 5 . . . . . . . . . Installed 180 | . . . . . 4 5 . . . . . 4 . 163 4 Triggered 13 | . . . . . 5 5 . . . . . 3 . . . Fabricated Traps 173 | . . . . . . . . . . . . . . 173 . Most Traps Carried 13 | . . . . . 2 5 . 6 6 6 6 6 4 13 6 Machines | -11 -10 -10 -10 -9 -8 -7 -7 -7 -7 -6 -6 -6 -6 -6 -6 ---------- Run | Scr Mat Min Exi Min Mat Fac Low Low Dat Pro Fac Low Low Zio Dee Machines Disabled 9 | . . . . 1 2 3 . 1 . . . . 1 . 1 Max in Single Turn 1 | . . . . 1 1 1 . 1 . . . . 1 . 1 Garrison Access 1 | . . . . . 1 . . . . . . . . . . Machines Sabotaged . | . . . . . . . . . . . . . . . . Garrisons Compromised . | . . . . . . . . . . . . . . . . Overloaded Fab Kills . | . . . . . . . . . . . . . . . . Hacking | -11 -10 -10 -10 -9 -8 -7 -7 -7 -7 -6 -6 -6 -6 -6 -6 --------- Run | Scr Mat Min Exi Min Mat Fac Low Low Dat Pro Fac Low Low Zio Dee Machines Accessed 35 | . 10 1 1 . 7 7 . . 4 . 3 . 1 1 . Terminals 17 | . 7 . . . 4 4 . . . . 2 . . . . Fabricators 2 | . . . . . . 2 . . . . . . . . . Repair Stations 4 | . 1 . . . 2 1 . . . . . . . . . Recycling Units 2 | . 2 . . . . . . . . . . . . . . Scanalyzers . | . . . . . . . . . . . . . . . . Garrison Access 2 | . . . . . 1 . . . . . 1 . . . . Total Hacks 118 | . 34 1 1 . 19 17 . . 33 . 8 . 1 4 . Successful 82 | . 23 1 1 . 11 7 . . 33 . 1 . 1 4 . Failed 36 | . 11 . . . 8 10 . . . . 7 . . . . Catastrophic 12 | . 4 . . . 1 3 . . . . 4 . . . . Database Lockouts . | . . . . . . . . . . . . . . . . Manual 42 | . 18 . . . 6 9 . . . . 5 . . 4 . Terminals 52 | . 25 . . . 11 11 . . . . 5 . . . . Fabricators 2 | . . . . . . 2 . . . . . . . . . Repair Stations 15 | . 4 . . . 7 4 . . . . . . . . . Recycling Units 5 | . 5 . . . . . . . . . . . . . . Scanalyzers . | . . . . . . . . . . . . . . . . Garrison Access 4 | . . . . . 1 . . . . . 3 . . . . Terminal Hacks 50 | . 4 1 1 . 3 3 . . 33 . . . 1 4 . Record 12 | . . . 1 . . . . . 11 . . . . . . Part Schematic 17 | . . . . . . . . . 13 . . . . 4 . Robot Schematic 6 | . . . . . . . . . 6 . . . . . . Robot Analysis 1 | . . . . . 1 . . . . . . . . . . Prototype ID Bank 8 | . 3 . . . 2 . . . 3 . . . . . . Open Door 2 | . . 1 . . . . . . . . . . 1 . . Branch Access Points 1 | . . . . . . 1 . . . . . . . . . Locate Traps 2 | . 1 . . . . 1 . . . . . . . . . Reprogram Traps 1 | . . . . . . 1 . . . . . . . . . Fabricator Hacks . | . . . . . . . . . . . . . . . . Repair Station Hacks 14 | . 4 . . . 6 4 . . . . . . . . . Scan Component 7 | . 2 . . . 3 2 . . . . . . . . . Repair 7 | . 2 . . . 3 2 . . . . . . . . . Recycling Unit Hacks 3 | . 3 . . . . . . . . . . . . . . Retrieve Matter 1 | . 1 . . . . . . . . . . . . . . Retrieve Components 2 | . 2 . . . . . . . . . . . . . . Scanalyzer . | . . . . . . . . . . . . . . . . Garrison Access Hacks 1 | . . . . . 1 . . . . . . . . . . Seal Access 1 | . . . . . 1 . . . . . . . . . . Unauthorized Hacks 14 | . 12 . . . 1 . . . . . 1 . . . . Terminals 12 | . 10 . . . 1 . . . . . 1 . . . . Track 5 | . 5 . . . . . . . . . . . . . . Assimilate 1 | . 1 . . . . . . . . . . . . . . Botnet 4 | . 3 . . . . . . . . . 1 . . . . Operators 2 | . 1 . . . 1 . . . . . . . . . . Fabricators . | . . . . . . . . . . . . . . . . Repair Stations . | . . . . . . . . . . . . . . . . Recycling Units 2 | . 2 . . . . . . . . . . . . . . Tunnel 2 | . 2 . . . . . . . . . . . . . . Scanalyzers . | . . . . . . . . . . . . . . . . Garrison Access . | . . . . . . . . . . . . . . . . Data Cores Recovered . | . . . . . . . . . . . . . . . . Used . | . . . . . . . . . . . . . . . . Hacking Detections 23 | . 8 . . . 5 7 . . . . 3 . . . . Full Trace Events . | . . . . . . . . . . . . . . . . Feedback Events . | . . . . . . . . . . . . . . . . Feedback Blocked . | . . . . . . . . . . . . . . . . Robot Schematics Acquired 8 | . . . . . . . . . 6 . . . . 2 . Robots Built . | . . . . . . . . . . . . . . . . Authchips . | . . . . . . . . . . . . . . . . Time . | . . . . . . . . . . . . . . . . Total Robot Build Rating . | . . . . . . . . . . . . . . . . Part Schematics Acquired 32 | . . . . . . . . . 13 . . . . 19 . Parts Built . | . . . . . . . . . . . . . . . . Authchips . | . . . . . . . . . . . . . . . . Time . | . . . . . . . . . . . . . . . . Total Part Build Rating . | . . . . . . . . . . . . . . . . Parts Repaired 7 | . 2 . . . 3 2 . . . . . . . . . Time 206 | . 52 . . . 78 76 . . . . . . . . . Parts Recycled . | . . . . . . . . . . . . . . . . Recycled Matter . | . . . . . . . . . . . . . . . . Retrieved Matter 173 | . 173 . . . . . . . . . . . . . . Retrieved Components 16 | . 16 . . . . . . . . . . . . . . Parts Scanalyzed . | . . . . . . . . . . . . . . . . Part Schematics Acquired . | . . . . . . . . . . . . . . . . Parts Damaged . | . . . . . . . . . . . . . . . . Bothacking | -11 -10 -10 -10 -9 -8 -7 -7 -7 -7 -6 -6 -6 -6 -6 -6 ------------ Run | Scr Mat Min Exi Min Mat Fac Low Low Dat Pro Fac Low Low Zio Dee Used RIF Installer . | . . . . . . . . . . . . . . . . Robots Hacked 10 | . . . 4 . 1 . 2 . 1 1 . . . 1 . Non-combat 4 | . . . 3 . 1 . . . . . . . . . . Combat 6 | . . . 1 . . . 2 . 1 1 . . . 1 . Robot Hacks Applied 10 | . . . 4 . 1 . 2 . 1 1 . . . 1 . parse_system 10 | . . . 4 . 1 . 2 . 1 1 . . . 1 . Relay Couplers Released . | . . . . . . . . . . . . . . . . Fabnet Peak Effective % . | . . . . . . . . . . . . . . . . Robots Rewired 2 | . . . . . . . 2 . . . . . . . . Allies Hacked . | . . . . . . . . . . . . . . . . Hacks Repelled . | . . . . . . . . . . . . . . . . Allies | -11 -10 -10 -10 -9 -8 -7 -7 -7 -7 -6 -6 -6 -6 -6 -6 -------- Run | Scr Mat Min Exi Min Mat Fac Low Low Dat Pro Fac Low Low Zio Dee Total Allies 4 | . 1 . . . . . 2 . . 1 . . . . . Largest Group 2 | . 1 1 1 1 . . 2 2 . 1 . . . . . Highest-Rated Group 96 | . 10 7 7 7 . . 62 62 . 96 . . . . . Highest-Rated Ally 96 | . 10 7 7 7 . . 32 32 . 96 . . . . . Total Orders 7 | . . 6 . 1 . . . . . . . . . . . STAY 4 | . . 3 . 1 . . . . . . . . . . . FOLLOW 3 | . . 3 . . . . . . . . . . . . . Ally Attacks 10 | . . . . . . . 1 3 . 6 . . . . . Total Damage 226 | . . . . . . . 30 102 . 94 . . . . . Kills 1 | . . . . . . . 1 . . . . . . . . Allies Corrupted . | . . . . . . . . . . . . . . . . Allies Melted . | . . . . . . . . . . . . . . . . Intel | -11 -10 -10 -10 -9 -8 -7 -7 -7 -7 -6 -6 -6 -6 -6 -6 ------- Run | Scr Mat Min Exi Min Mat Fac Low Low Dat Pro Fac Low Low Zio Dee Robot Analysis Total 1 | . . . . . 1 . . . . . . . . . . Derelict Logs Recovered 15 | . . 2 . 2 . . 2 2 . 2 . 1 2 2 . Drone Launches . | . . . . . . . . . . . . . . . . Drone Recoveries . | . . . . . . . . . . . . . . . . Exploration | -11 -10 -10 -10 -9 -8 -7 -7 -7 -7 -6 -6 -6 -6 -6 -6 ------------- Run | Scr Mat Min Exi Min Mat Fac Low Low Dat Pro Fac Low Low Zio Dee Turns Passed 37356 | 120 1334 1215 516 1398 2215 2232 1309 1099 258 1235 568 2178 1471 19146 1062 Spaces Moved 10874 | 61 720 476 392 510 870 823 512 406 102 502 181 875 432 3426 586 Core 12 | 2 . . . . . . . . . . . . . . 10 Treads 3132 | 59 274 2 . 2 8 142 260 195 . 116 128 875 430 641 . Legs 3045 | . . . . . . . . . . . 53 . 2 2785 205 Wheels 4314 | . 446 474 392 508 862 681 252 211 102 386 . . . . . Hover 371 | . . . . . . . . . . . . . . . 371 Flight . | . . . . . . . . . . . . . . . . Fastest Speed 44 | 50 95 110 125 155 155 190 190 230 245 230 235 235 235 280 44 Average Speed 251 | 156 129 124 129 155 201 223 215 239 246 234 243 235 306 369 153 Slowest Speed 490 | 160 240 160 155 240 245 245 320 260 260 275 263 235 480 490 350 Overloaded Moves . | . . . . . . . . . . . . . . . . Propulsion Burnouts . | . . . . . . . . . . . . . . . . Robots Hopped . | . . . . . . . . . . . . . . . . Cave-ins Triggered . | . . . . . . . . . . . . . . . . Exploration Rate (%) 68 | 4 93 99 83 98 61 25 68 57 77 76 5 97 73 90 83 Regions Visited 15 Branch Regions 11 Pre-discovered Areas 7 | . 2 . 1 . . . . 1 1 . . . . 2 . Known Exits Taken 3 | . . . . . 1 1 . . . 1 . . . . . Unknown Exits Taken 12 | 1 1 1 1 1 . . 1 1 1 . 1 1 1 1 . Scrap Searched 24 | . . 1 . 2 . . 4 4 . 5 . 4 . 4 . Spaces Dug 49 | . . . . . . 11 18 1 . . 4 . 15 . . Terrain Destroyed 237 | . . 1 . 13 39 12 40 18 . 22 4 . 84 3 1 Melee 18 | . . . . . . 11 1 1 . . 4 . 1 . . Projectile 18 | . . . . . 1 1 7 4 . 1 . . 2 1 1 AOE 201 | . . 1 . 13 38 . 32 13 . 21 . . 81 2 . Terrain Rammed . | . . . . . . . . . . . . . . . . Walls Destroyed . | . . . . . . . . . . . . . . . . Machines Disabled . | . . . . . . . . . . . . . . . . Actions | -11 -10 -10 -10 -9 -8 -7 -7 -7 -7 -6 -6 -6 -6 -6 -6 --------- Run | Scr Mat Min Exi Min Mat Fac Low Low Dat Pro Fac Low Low Zio Dee Total 20093 | 76 991 1036 398 1087 1209 1113 628 483 110 539 254 981 528 9984 676 Wait 7542 | 2 153 444 . 548 73 112 12 17 . 1 25 73 37 6036 9 Move 10859 | 60 719 475 391 509 869 822 511 405 101 501 180 874 431 3425 586 Hop . | . . . . . . . . . . . . . . . . Pick Up 174 | 3 13 3 . 4 22 26 8 2 . 4 4 4 1 75 5 Fast Attach 67 | 7 4 1 . . 2 8 5 4 3 1 2 1 3 9 17 Attach 79 | . 3 1 . . 11 7 11 1 1 1 3 . 11 19 10 Detach 44 | . 2 1 . . 5 3 6 1 1 . 1 . 4 19 1 Swap 217 | . 17 10 2 11 39 42 15 23 . 16 10 16 10 5 1 Drop 295 | . 4 4 1 2 19 31 3 8 3 4 4 4 3 201 4 Fire 359 | 4 72 29 . 13 62 43 43 18 . 7 19 4 26 13 6 Melee 97 | . . . 4 . 1 14 13 4 1 4 6 1 2 14 33 Ram . | . . . . . . . . . . . . . . . . Kick . | . . . . . . . . . . . . . . . . Crush 8 | . 4 3 . . 1 . . . . . . . . . . Escape Stasis . | . . . . . . . . . . . . . . . . Rewire 1 | . . . . . . . 1 . . . . . . . . Trap 351 | . . 65 . . 105 5 . . . . . 4 . 168 4 Miscellaneous . | . . . . . . . . . . . . . . . . Route ------- -11/Scrapyard -10/Materials (discovered 3 exits: [*Mat x2] / *Min) -10/Mines (discovered 3 exits: [*Mat x2] / *Exi) -10/Exiles -9/Mines (discovered 2 exits: *Mat x2) -8/Materials (discovered 2 exits: *Fac x2) -7/Factory (discovered 3 exits: *Sto / *Low x2) -7/Lower Caves -7/Lower Caves -7/Data Miner -6/Proximity Caves -6/Factory (discovered 3 exits: Fac x2 / [*Low]) -6/Lower Caves -6/Lower Caves (discovered 2 exits: *Fac / *Zio) -6/Zion (discovered 2 exits: [*Dee] / [*Pro]) -6/Deep Caves History --------- Turn | Location | Event 12 | -11/Scrapyard | Discovered new exit (range 16) 121 | -11/Scrapyard | Entered Materials 293 | -10/Materials | Discovered new exit (range 13) 312 | -10/Materials | Build established: Mutant 716 | -10/Materials | Repaired Lgt. Treads 743 | -10/Materials | Repaired Lgt. Treads 950 | -10/Materials | Discovered new exit (range 5) 1403 | -10/Materials | Discovered new exit (range 13) 1455 | -10/Materials | Entered Mines 1455 | -10/Mines | Accompanied by 1 ally 1559 | -10/Mines | Met a Derelict who couldn't figure out how to use a Trap Extractor 2109 | -10/Mines | Discovered new exit (range 13) 2117 | -10/Mines | Learned Materials machine intel 2285 | -10/Mines | Discovered new exit (range 10) 2341 | -10/Mines | Received a Rocket Launcher from a helpful Derelict 2349 | -10/Mines | Deemed a non-threat by the Exiles lab entrance 2349 | -10/Mines | Discovered new exit (range 5) 2504 | -10/Mines | Learned Materials trap positions 2670 | -10/Mines | Entered Exiles 2670 | -10/Exiles | Accompanied by 1 ally 2700 | -10/Exiles | Met 8R-AWN 2726 | -10/Exiles | Met EX-HEX 2764 | -10/Exiles | Met EX-BIN 2811 | -10/Exiles | Met EX-DEC 2816 | -10/Exiles | Learned location of Zion (-6) 2950 | -10/Exiles | Visited The Gauntlet 3172 | -10/Exiles | Discovered new exit (range 10) 3186 | -10/Exiles | Entered Mines 3186 | -9/Mines | Accompanied by 1 ally 3349 | -9/Mines | Met a Derelict bent on vengeance 3885 | -9/Mines | Discovered new exit (range 12) 4098 | -9/Mines | Discovered new exit (range 5) 4267 | -9/Mines | Core integrity fell below 50% 4584 | -9/Mines | Entered Materials 4584 | -8/Materials | Evolved 4 slots: Propulsion x1, Utility x1, Weapon x2 4585 | -8/Materials | Identified exit to Factory 4586 | -8/Materials | Loaded intel: 21 trap records 4587 | -8/Materials | Loaded intel: 54 machine locations 4623 | -8/Materials | Repaired Lgt. Treads? 5024 | -8/Materials | Repaired Seismic Detector? 5078 | -8/Materials | Repaired Assault Rifle 5920 | -8/Materials | Garrison activated, responded to threat 6036 | -8/Materials | Build established: Tank 6562 | -8/Materials | Discovered exit to Factory (range 13) 6799 | -8/Materials | Entered Factory 6799 | -7/Factory | Evolved 2 slots: Propulsion x1, Utility x1 6800 | -7/Factory | Identified exit to Storage 6909 | -7/Factory | Repaired Shock Bomb Launcher? 6975 | -7/Factory | Repaired Insulated Plating 7771 | -7/Factory | Identified exit to Lower Caves 8295 | -7/Factory | Garrison activated, responded to threat 8879 | -7/Factory | Build established: Scavenger-Mutant 9031 | -7/Factory | Entered Lower Caves 9075 | -7/Lower Caves | Spotted B-75 Beast 9140 | -7/Lower Caves | Destroyed B-75 Beast 9163 | -7/Lower Caves | Lost 5 parts (1n2u2w) 9388 | -7/Lower Caves | Build established: Mutant 9595 | -7/Lower Caves | Attracted the attention of an 0b10 outpost 9670 | -7/Lower Caves | Lost 4 parts (1p2n1w) 9892 | -7/Lower Caves | Learned location of 1 exit from Factory 10064 | -7/Lower Caves | Learned Factory emergency access door positions 10127 | -7/Lower Caves | Discovered new exit (range 5) 10340 | -7/Lower Caves | Entered another Lower Caves area 10340 | -7/Lower Caves | Accompanied by 2 allies 11199 | -7/Lower Caves | Attacked by a delusional Derelict stockpiling parts 11250 | -7/Lower Caves | Build established: Derelict-Mutant 11277 | -7/Lower Caves | Discovered new exit (range 16) 11439 | -7/Lower Caves | Entered Data Miner 11441 | -7/Data Miner | Discovered new exit (range 6) 11483 | -7/Data Miner | Met Data Miner 11566 | -7/Data Miner | Learned location of Section 7 (-2) 11566 | -7/Data Miner | Acquired the access code to Warlord's prototype stash 11598 | -7/Data Miner | Received God Mode back door access code from Data Miner 11697 | -7/Data Miner | Entered Proximity Caves 11731 | -6/Proximity Caves | Identified exit to Factory 12004 | -6/Proximity Caves | Escorted by Enhanced Grunt 12615 | -6/Proximity Caves | Learned location of 1 exit from Factory 12926 | -6/Proximity Caves | Received a Behemoth hack from an annoying Tinkerer 12932 | -6/Proximity Caves | System corruption reached 10% 12932 | -6/Proximity Caves | Entered Factory 12932 | -6/Factory | Evolved 2 slots: Propulsion x1, Utility x1 12933 | -6/Factory | Identified exit to Factory 13207 | -6/Factory | Garrison activated, responded to threat 13491 | -6/Factory | Discovered new exit (range 5) 13500 | -6/Factory | Entered Lower Caves 13627 | -6/Lower Caves | Encountered a Warlord checkpoint 15527 | -6/Lower Caves | Discovered new exit (range 13) 15534 | -6/Lower Caves | Learned location of 1 exit from Factory 15678 | -6/Lower Caves | Entered another Lower Caves area 15679 | -6/Lower Caves | Encountered a Warlord checkpoint 15823 | -6/Lower Caves | Discovered exit to Factory (range 6) 15928 | -6/Lower Caves | Attracted the attention of an 0b10 checkpoint 16070 | -6/Lower Caves | Learned 4 Factory zone layouts 16093 | -6/Lower Caves | Learned 12 Factory zone layouts 16418 | -6/Lower Caves | Attracted the attention of an 0b10 outpost 16463 | -6/Lower Caves | Lost 3 parts (1p2n) 16548 | -6/Lower Caves | Lost 7 parts (3n1u3w) 16762 | -6/Lower Caves | Build established: Skirmisher 17105 | -6/Lower Caves | Discovered new exit (range 9) 17149 | -6/Lower Caves | Entered Zion 17190 | -6/Zion | Build established: Mutant 17399 | -6/Zion | Learned 4 Factory zone layouts 18273 | -6/Zion | Discovered new exit (range 17) 18330 | -6/Zion | Found Prototype Device 18835 | -6/Zion | Found Prototype Device 18996 | -6/Zion | Identified Mobile Refinery Mk. CCLXVII 19037 | -6/Zion | Identified Bomb Factory No. 2 19104 | -6/Zion | Found Prototype Device 19105 | -6/Zion | Identified Phasing AFG 19372 | -6/Zion | Learned Factory non-interactive machine intel 20014 | -6/Zion | Build established: Derelict-Mutant 20045 | -6/Zion | Learned location of Warlord (-4) 20268 | -6/Zion | Received a hallucinogenic algorithm 22125 | -6/Zion | Found Prototype Energy Gun 22127 | -6/Zion | Identified Storm Laser 35943 | -6/Zion | Attacked by Zionites 35946 | -6/Zion | Destroyed Imprinter 35975 | -6/Zion | Extracted access codes from Imprinter's data core 36152 | -6/Zion | System corruption reached 10% 36184 | -6/Zion | Lost 4 parts (1n2u1w) 36244 | -6/Zion | Opened final containment barrier to the Deep Caves 36289 | -6/Zion | Discovered new exit (range 3) 36289 | -6/Zion | Saw the warning signs outside the Deep Caves entrance 36295 | -6/Zion | Entered Deep Caves 36449 | -6/Deep Caves | Build established: Mutant 36917 | -6/Deep Caves | Z-Facility disabled 37075 | -6/Deep Caves | Build established: Scavenger-Mutant 37137 | -6/Deep Caves | Released all parts (4) 37140 | -6/Deep Caves | Core integrity fell below 50% 37141 | -6/Deep Caves | System corruption reached 30% 37147 | -6/Deep Caves | Core integrity fell below 20% 37147 | -6/Deep Caves | Found Prototype Protection 37147 | -6/Deep Caves | Identified Zio. Heavy Carapace 37168 | -6/Deep Caves | Lost 20 parts (1p6n8u5w) 37201 | -6/Deep Caves | Found Prototype Protection 37201 | -6/Deep Caves | Identified Zio. Weapon Casing 37339 | -6/Deep Caves | Spotted as-08165 37348 | -6/Deep Caves | Spotted as-27112 37354 | -6/Deep Caves | Triggered Deep Caves wall 37355 | -6/Deep Caves | Found Prototype Processor 37355 | -6/Deep Caves | Identified Modified TNC 37357 | -6/Deep Caves | Destroyed by as-27112 with Assembled Focal Cannon Last Messages --------------- 37243_ Extracted 189 matter. 37246_ System corrupted: Energy discharge (-252). 37262_ P4A92T2BDR2#VZKA9=NS2JU&OM0AC%G 37277_ 63ECLR1UQ1PRS:T6YYJRIT 37294_ System corrupted: Energy discharge (-154). 37315_ T,VK:FRJIUUI9INS3WMN